fUSD/lending_fUSD_20250125
["ID","MTS","AMOUNT","RATE_DAILY","PERIOD"]
[350347643,1737807058009,-500.0,0.00017021,2]
[350347644,1737807058019,-1008.86,0.00017021,2]
[350347645,1737807058028,-473.128394,0.00017021,2]
[350347646,1737807058037,-500.0,0.00017021,2]
[350347647,1737807058047,-500.0,0.00017021,2]
[350347648,1737807058057,-796.64,0.00017021,2]
[350347649,1737807058066,-500.0,0.00017021,2]
[350347650,1737807058076,-500.0,0.00017021,2]
[350347651,1737807058086,-500.0,0.00017022,2]
[350347652,1737807058095,-500.0,0.00017022,2]
[350347653,1737807058105,-500.0,0.00017022,2]
[350347654,1737807058114,-188.73228109,0.00017022,2]
[350347655,1737807058124,-500.0,0.00017022,2]
[350347656,1737807058133,-500.0,0.00017022,2]
[350347657,1737807058142,-500.0,0.00017022,2]
[350347658,1737807058152,-500.0,0.00017022,2]
[350347659,1737807058161,-500.0,0.00017022,2]
[350347660,1737807058171,-500.0,0.00017022,2]
[350347661,1737807058180,-500.0,0.00017022,2]
[350347662,1737807058189,-500.0,0.00017022,2]
[350347663,1737807058199,-651.55,0.00017022,2]
[350347664,1737807058208,-500.0,0.00017022,2]
[350347665,1737807058218,-1063.63,0.00017022,2]
[350347666,1737807058227,-500.0,0.00017022,2]
[350347667,1737807058237,-500.0,0.00017022,2]
[350347668,1737807058246,-500.0,0.00017022,2]
[350347669,1737807058255,-500.0,0.00017022,2]
[350347670,1737807058264,-1113.67,0.00017022,2]
[350347671,1737807058273,-500.0,0.00017022,2]
[350347672,1737807058283,-500.0,0.00017022,2]
[350347673,1737807058291,-500.0,0.00017022,2]
[350347674,1737807058301,-685.5,0.00017022,2]
[350347675,1737807058311,-1371.57,0.00017022,2]
[350347676,1737807058320,-154.7348095,0.00017022,2]
[350347677,1737807058329,-257.70104466,0.00017022,2]
[350347678,1737807058339,-500.0,0.00017022,2]
[350347679,1737807058348,-500.0,0.00017022,2]
[350347680,1737807058357,-500.0,0.00017022,2]
[350347681,1737807058366,-500.0,0.00017022,2]
[350347682,1737807058376,-500.0,0.00017022,2]
[350347683,1737807058385,-500.0,0.00017022,2]
[350347684,1737807058394,-660.57,0.00017022,2]
[350347685,1737807058403,-500.0,0.00017022,2]
[350347686,1737807058413,-575.05,0.00017022,2]
[350347687,1737807058422,-500.0,0.00017022,2]
[350347688,1737807058432,-1596.3,0.00017022,2]
[350347689,1737807058441,-1472.3,0.00017022,2]
[350347690,1737807058542,-500.0,0.00017022,2]
[350347691,1737807058551,-500.0,0.00017022,2]
[350347692,1737807058561,-1274.99,0.00017022,2]
[350347693,1737807058570,-500.87571151,0.00017042,2]
[350347694,1737807058580,-527.3868089,0.00017072,2]
[350347695,1737807058590,-1000.0,0.00017087,2]
[350347696,1737807058599,-500.0,0.00017122,2]
[350347697,1737807058609,-500.0,0.00017122,2]
[350347698,1737807058619,-500.0,0.00017122,2]
[350347699,1737807058628,-500.0,0.00017122,2]
[350347700,1737807058638,-500.0,0.00017122,2]
[350347701,1737807058647,-500.0,0.00017122,2]
[350347702,1737807058657,-500.0,0.00017122,2]
[350347703,1737807058667,-500.0,0.00017122,2]
[350347704,1737807058676,-500.0,0.00017122,2]
[350347705,1737807058686,-500.0,0.00017122,2]
[350347706,1737807058695,-500.0,0.00017122,2]
[350347707,1737807058705,-500.0,0.00017122,2]
[350347708,1737807058716,-500.0,0.00017122,2]
[350347709,1737807058725,-500.0,0.00017122,2]
[350347710,1737807058735,-500.0,0.00017122,2]
[350347711,1737807058745,-500.0,0.00017122,2]
[350347712,1737807058754,-500.0,0.00017122,2]
[350347713,1737807058765,-500.0,0.00017122,2]
[350347714,1737807058777,-500.0,0.00017122,2]
[350347715,1737807058786,-500.0,0.00017122,2]
[350347716,1737807058795,-500.0,0.00017122,2]
[350347717,1737807058805,-500.0,0.00017122,2]
[350347718,1737807058816,-500.0,0.00017122,2]
[350347719,1737807058826,-500.0,0.00017122,2]
[350347720,1737807058835,-500.0,0.00017122,2]
[350347721,1737807058845,-500.0,0.00017122,2]
[350347722,1737807058855,-500.0,0.00017122,2]
[350347723,1737807058864,-500.0,0.00017122,2]
[350347724,1737807058873,-635.45,0.00017122,2]
[350347725,1737807058883,-906.75,0.00017122,2]
[350347726,1737807058892,-500.0,0.00017122,2]
[350347727,1737807058901,-500.0,0.00017122,2]
[350347728,1737807058911,-1000.0,0.00017122,2]
[350347729,1737807058920,-1817.31,0.00017122,2]
[350347730,1737807058930,-791.67,0.00017122,2]
[350347731,1737807058940,-500.0,0.00017122,2]
[350347732,1737807058949,-500.0,0.00017122,2]
[350347733,1737807058959,-500.0,0.00017122,2]
[350347734,1737807058968,-1122.79,0.00017122,2]
[350347735,1737807058978,-500.0,0.00017122,2]
[350347736,1737807058987,-500.0,0.00017122,2]
[350347737,1737807058997,-1134.77,0.00017122,2]
[350347738,1737807059007,-323.2209408,0.00017122,2]
[350347739,1737807059018,-1987.77,0.00017122,2]
[350347740,1737807059027,-500.0,0.00017122,2]
[350347741,1737807059036,-500.0,0.00017122,2]
[350347742,1737807059046,-500.0,0.00017122,2]
[350347743,1737807059055,-500.0,0.00017122,2]
[350347744,1737807059065,-500.0,0.00017122,2]
[350347745,1737807059074,-240.38451931,0.00017122,2]
[350347746,1737807059084,-500.0,0.00017122,2]
[350347747,1737807059094,-500.0,0.00017122,2]
[350347748,1737807059104,-500.0,0.00017122,2]
[350347749,1737807059113,-500.0,0.00017122,2]
[350347750,1737807059122,-500.0,0.00017122,2]
[350347751,1737807059132,-500.0,0.00017122,2]
[350347752,1737807059141,-626.37,0.00017122,2]
[350347753,1737807059153,-500.0,0.00017122,2]
[350347754,1737807059162,-500.0,0.00017122,2]
[350347755,1737807059171,-383.95166986,0.00017122,2]
[350347756,1737807059181,-500.0,0.00017122,2]
[350347757,1737807059191,-500.0,0.00017122,2]
[350347758,1737807059200,-500.0,0.00017122,2]
[350347759,1737807059210,-500.0,0.00017122,2]
[350347760,1737807059219,-563.66,0.00017122,2]
[350347761,1737807059229,-500.0,0.00017122,2]
[350347762,1737807059242,-418.44969894,0.00017122,2]
[350347763,1737807059252,-500.0,0.00017122,2]
[350347764,1737807059263,-500.0,0.00017122,2]
[350347765,1737807059272,-554.41233393,0.00017122,2]
[350347766,1737807059290,-500.0,0.00017123,2]
[350347767,1737807059306,-500.0,0.00017123,2]
[350347768,1737807059324,-500.0,0.00017123,2]
[350347769,1737807059345,-360.36,0.00017123,2]
[350347770,1737807059363,-500.0,0.00017123,2]
[350347771,1737807059379,-500.0,0.00017123,2]
[350347772,1737807059397,-500.0,0.00017123,2]
[350347773,1737807059416,-500.0,0.00017123,2]
[350347774,1737807059433,-500.0,0.00017123,2]
[350347775,1737807059449,-500.0,0.00017123,2]
[350347776,1737807059467,-500.0,0.00017123,2]
[350347777,1737807059484,-500.0,0.00017123,2]
[350347778,1737807059500,-500.0,0.00017123,2]
[350347779,1737807059514,-500.0,0.00017123,2]
[350347780,1737807059529,-500.0,0.00017123,2]
[350347781,1737807059546,-500.0,0.00017123,2]
[350347782,1737807059558,-369.487863,0.00017123,2]
[350347783,1737807059575,-536.23,0.00017123,2]
[350347784,1737807059588,-500.0,0.00017123,2]
[350347785,1737807059603,-500.0,0.00017123,2]
[350347786,1737807059618,-1156.91,0.00017123,2]
[350347787,1737807059633,-995.51,0.00017123,2]
[350347788,1737807059648,-990.91,0.00017123,2]
[350347789,1737807059662,-605.7,0.00017123,2]
[350347790,1737807059676,-500.0,0.00017123,2]
[350347791,1737807059690,-1310.85,0.00017123,2]
[350347792,1737807059703,-1790.49,0.00017123,2]
[350347793,1737807059717,-1594.57,0.00017123,2]
[350347794,1737807059731,-513.83,0.00017123,2]
[350347795,1737807059744,-586.37,0.00017123,2]
[350347796,1737807059760,-1597.93,0.00017123,2]
[350347797,1737807059778,-500.0,0.00017123,2]
[350347798,1737807059792,-663.46,0.00017123,2]
[350347799,1737807059805,-500.0,0.00017123,2]
[350347800,1737807059819,-500.0,0.00017123,2]
[350347801,1737807059833,-579.17,0.00017123,2]
[350347802,1737807059847,-522.15,0.00017123,2]
[350347803,1737807059862,-500.0,0.00017123,2]
[350347804,1737807059877,-1015.62,0.00017123,2]
[350347805,1737807059891,-807.99,0.00017123,2]
[350347806,1737807059904,-500.0,0.00017123,2]
[350347807,1737807059918,-500.0,0.00017158,2]
[350347808,1737807059932,-796.76,0.00017158,2]
[350347809,1737807059945,-500.0,0.00017158,2]
[350347810,1737807059959,-1013.73,0.00017158,2]
[350347811,1737807059972,-500.0,0.00017158,2]
[350347812,1737807059985,-905.13,0.00017158,2]
[350347813,1737807059999,-500.0,0.00017158,2]
[350347814,1737807060013,-646.83,0.00017158,2]
[350347815,1737807060028,-500.0,0.00017158,2]
[350347816,1737807060042,-1335.49,0.00017158,2]
[350347817,1737807060056,-500.0,0.00017158,2]
[350347818,1737807060071,-500.0,0.00017158,2]
[350347819,1737807060085,-1333.21,0.00017158,2]
[350347820,1737807060099,-500.0,0.00017158,2]
[350347821,1737807060113,-847.45,0.00017158,2]
[350347822,1737807060126,-484.07576994,0.00017158,2]
[350347823,1737807060140,-651.2,0.00017158,2]
[350347824,1737807060154,-500.0,0.00017158,2]
[350347825,1737807060167,-500.0,0.00017158,2]
[350347826,1737807060181,-500.0,0.00017158,2]
[350347827,1737807060195,-1008.86,0.00017158,2]
[350347828,1737807060209,-473.128394,0.00017158,2]
[350347829,1737807060223,-500.0,0.00017158,2]
[350347830,1737807060236,-500.0,0.00017158,2]
[350347831,1737807060251,-796.64,0.00017158,2]
[350347832,1737807060265,-500.0,0.00017158,2]
[350347833,1737807060280,-500.0,0.00017158,2]
[350347834,1737807060293,-500.0,0.00017159,2]
[350347835,1737807060307,-500.0,0.00017159,2]
[350347836,1737807060316,-500.0,0.00017159,2]
[350347837,1737807060326,-425.84784142,0.00017159,2]
[350347838,1737807060335,-500.0,0.00017159,2]
[350347839,1737807060345,-500.0,0.00017159,2]
[350347840,1737807060520,-500.0,0.00017159,2]
[350347841,1737807060531,-500.0,0.00017159,2]
[350347842,1737807060541,-500.0,0.00017159,2]
[350347843,1737807060550,-500.0,0.00017159,2]
[350347844,1737807060559,-500.0,0.00017159,2]
[350347845,1737807060568,-651.55,0.00017159,2]
[350347846,1737807060577,-500.0,0.00017159,2]
[350347847,1737807060587,-1063.63,0.00017159,2]
[350347848,1737807060596,-500.0,0.00017159,2]
[350347849,1737807060605,-500.0,0.00017159,2]
[350347850,1737807060615,-500.0,0.00017159,2]
[350347851,1737807060624,-500.0,0.00017159,2]
[350347852,1737807060634,-1113.67,0.00017159,2]
[350347853,1737807060644,-500.0,0.00017159,2]
[350347854,1737807060654,-500.0,0.00017159,2]
[350347855,1737807060663,-500.0,0.00017159,2]
[350347856,1737807060673,-685.5,0.00017159,2]
[350347857,1737807060682,-1371.57,0.00017159,2]
[350347858,1737807060692,-500.0,0.00017159,2]
[350347859,1737807060702,-500.0,0.00017159,2]
[350347860,1737807060711,-500.0,0.00017159,2]
[350347861,1737807060721,-500.0,0.00017159,2]
[350347862,1737807060731,-500.0,0.00017159,2]
[350347863,1737807060741,-660.57,0.00017159,2]
[350347864,1737807060751,-500.0,0.00017159,2]
[350347865,1737807060760,-575.05,0.00017159,2]
[350347866,1737807060773,-500.0,0.00017159,2]
[350347867,1737807060782,-1596.3,0.00017159,2]
[350347868,1737807060792,-1472.3,0.00017159,2]
[350347869,1737807060802,-500.0,0.00017159,2]
[350347870,1737807060814,-500.0,0.00017159,2]
[350347871,1737807060823,-1274.99,0.00017159,2]
[350347872,1737807060832,-527.3868089,0.00017245,2]
[350347873,1737807060843,-500.0,0.00017258,2]
[350347874,1737807060852,-500.0,0.00017258,2]
[350347875,1737807060862,-335.6237709,0.00017259,2]
[350347876,1737807060871,-500.0,0.00017259,2]
[350347877,1737807060880,-500.0,0.00017259,2]
[350347878,1737807060889,-500.0,0.00017259,2]
[350347879,1737807060899,-159.27879688,0.00017259,2]
[350347880,1737807060908,-500.0,0.00017259,2]
[350347881,1737807060917,-500.0,0.00017259,2]
[350347882,1737807060926,-194.53153608,0.00017259,2]
[350347883,1737807060936,-500.0,0.00017259,2]
[350347884,1737807060946,-500.0,0.00017259,2]
[350347885,1737807060955,-500.0,0.00017259,2]
[350347886,1737807060964,-500.0,0.00017259,2]
[350347887,1737807060974,-500.0,0.00017259,2]
[350347888,1737807060982,-500.0,0.00017259,2]
[350347889,1737807060991,-500.0,0.00017259,2]
[350347890,1737807061000,-500.0,0.00017259,2]
[350347891,1737807061010,-500.0,0.00017259,2]
[350347892,1737807061019,-160.15,0.00017259,2]
[350347893,1737807061028,-500.0,0.00017259,2]
[350347894,1737807061039,-500.0,0.00017259,2]
[350347895,1737807061048,-500.0,0.00017259,2]
[350347896,1737807061058,-500.0,0.00017259,2]
[350347897,1737807061069,-500.0,0.00017259,2]
[350347898,1737807061078,-500.0,0.00017259,2]
[350347899,1737807061088,-500.0,0.00017259,2]
[350347900,1737807061097,-500.0,0.00017259,2]
[350347901,1737807061107,-635.45,0.00017259,2]
[350347902,1737807061116,-906.75,0.00017259,2]
[350347903,1737807061126,-500.0,0.00017259,2]
[350347904,1737807061135,-500.0,0.00017259,2]
[350347905,1737807061144,-1000.0,0.00017259,2]
[350347906,1737807061154,-1817.31,0.00017259,2]
[350347907,1737807061162,-791.67,0.00017259,2]
[350347908,1737807061172,-500.0,0.00017259,2]
[350347909,1737807061182,-500.0,0.00017259,2]
[350347910,1737807061191,-500.0,0.00017259,2]
[350347911,1737807061201,-1122.79,0.00017259,2]
[350347912,1737807061214,-500.0,0.00017259,2]
[350347913,1737807061223,-500.0,0.00017259,2]
[350347914,1737807061232,-1134.77,0.00017259,2]
[350347915,1737807061241,-1987.77,0.00017259,2]
[350347916,1737807061251,-500.0,0.00017259,2]
[350347917,1737807061260,-532.71144985,0.00017259,2]
[350347918,1737807061269,-500.0,0.00017259,2]
[350347919,1737807061278,-500.0,0.00017259,2]
[350347920,1737807061287,-500.0,0.00017259,2]
[350347921,1737807061296,-500.0,0.00017259,2]
[350347922,1737807061305,-500.0,0.00017259,2]
[350347923,1737807061315,-500.0,0.00017259,2]
[350347924,1737807061324,-500.0,0.00017259,2]
[350347925,1737807061334,-500.0,0.00017259,2]
[350347926,1737807061343,-500.0,0.00017259,2]
[350347927,1737807061352,-626.37,0.00017259,2]
[350347928,1737807061361,-553.4982675,0.00017259,2]
[350347929,1737807061370,-500.0,0.00017259,2]
[350347930,1737807061379,-500.0,0.00017259,2]
[350347931,1737807061389,-500.0,0.00017259,2]
[350347932,1737807061398,-500.0,0.00017259,2]
[350347933,1737807061407,-500.0,0.00017259,2]
[350347934,1737807061416,-500.0,0.00017259,2]
[350347935,1737807061426,-330.0,0.00017259,2]
[350347936,1737807061435,-500.0,0.00017259,2]
[350347937,1737807061444,-500.0,0.0001726,2]
[350347938,1737807061454,-500.0,0.0001726,2]
[350347939,1737807061463,-500.0,0.0001726,2]
[350347940,1737807061472,-500.0,0.0001726,2]
[350347941,1737807061481,-500.0,0.0001726,2]
[350347942,1737807061490,-500.0,0.0001726,2]
[350347943,1737807061500,-269.22,0.0001726,2]
[350347944,1737807061510,-500.0,0.0001726,2]
[350347945,1737807061519,-500.0,0.0001726,2]
[350347946,1737807061528,-500.0,0.0001726,2]
[350347947,1737807061539,-500.0,0.0001726,2]
[350347948,1737807061548,-500.0,0.0001726,2]
[350347949,1737807061557,-500.0,0.0001726,2]
[350347950,1737807061567,-369.487863,0.0001726,2]
[350347951,1737807061576,-536.23,0.0001726,2]
[350347952,1737807061585,-500.0,0.0001726,2]
[350347953,1737807061594,-500.0,0.0001726,2]
[350347954,1737807061603,-1156.91,0.0001726,2]
[350347955,1737807061612,-995.51,0.0001726,2]
[350347956,1737807061622,-990.91,0.0001726,2]
[350347957,1737807061631,-605.7,0.0001726,2]
[350347958,1737807061639,-500.0,0.0001726,2]
[350347959,1737807061649,-1310.85,0.0001726,2]
[350347960,1737807061660,-1790.49,0.0001726,2]
[350347961,1737807061670,-1594.57,0.0001726,2]
[350347962,1737807061680,-513.83,0.0001726,2]
[350347963,1737807061689,-586.37,0.0001726,2]
[350347964,1737807061700,-1597.93,0.0001726,2]
[350347965,1737807061709,-500.0,0.0001726,2]
[350347966,1737807061720,-663.46,0.0001726,2]
[350347967,1737807061729,-500.0,0.0001726,2]
[350347968,1737807061739,-500.0,0.0001726,2]
[350347969,1737807061748,-579.17,0.0001726,2]
[350347970,1737807061758,-522.15,0.0001726,2]
[350347971,1737807061771,-500.0,0.0001726,2]
[350347972,1737807061781,-1015.62,0.0001726,2]
[350347973,1737807061791,-807.99,0.0001726,2]
[350347974,1737807061800,-500.0,0.0001726,2]
[350347975,1737807061811,-896.22,0.0001726,2]
[350347976,1737807061821,-500.0,0.00017295,2]
[350347977,1737807061830,-796.76,0.00017295,2]
[350347978,1737807061840,-500.0,0.00017295,2]
[350347979,1737807061851,-1013.73,0.00017295,2]
[350347980,1737807061861,-500.0,0.00017295,2]
[350347981,1737807061871,-905.13,0.00017295,2]
[350347982,1737807061880,-500.0,0.00017295,2]
[350347983,1737807061889,-646.83,0.00017295,2]
[350347984,1737807061899,-500.0,0.00017295,2]
[350347985,1737807061908,-1335.49,0.00017295,2]
[350347986,1737807061917,-500.0,0.00017295,2]
[350347987,1737807061926,-500.0,0.00017295,2]
[350347988,1737807061936,-1333.21,0.00017295,2]
[350347989,1737807061947,-500.0,0.00017295,2]
[350347990,1737807061957,-847.45,0.00017295,2]
[350347991,1737807061966,-651.2,0.00017295,2]
[350347992,1737807061975,-500.0,0.00017295,2]
[350347993,1737807061985,-500.0,0.00017295,2]
[350347994,1737807061995,-500.0,0.00017295,2]
[350347995,1737807062004,-1008.86,0.00017295,2]
[350347996,1737807062013,-473.128394,0.00017295,2]
[350347997,1737807062023,-500.0,0.00017295,2]
[350347998,1737807062032,-500.0,0.00017295,2]
[350347999,1737807062041,-796.64,0.00017295,2]
[350348000,1737807062051,-500.0,0.00017295,2]
[350348001,1737807062061,-253.19935468,0.00017295,2]
[350348002,1737807062071,-236.45146373,0.00017296,2]
[350348003,1737807062080,-500.0,0.00017296,2]
[350348004,1737807062090,-500.0,0.00017296,2]
[350348005,1737807062099,-500.0,0.00017296,2]
[350348006,1737807062108,-500.0,0.00017296,2]
[350348007,1737807062118,-500.0,0.00017296,2]
[350348008,1737807062128,-500.0,0.00017296,2]
[350348009,1737807062138,-500.0,0.00017296,2]
[350348010,1737807062148,-500.0,0.00017296,2]
[350348011,1737807062158,-651.55,0.00017296,2]
[350348012,1737807062168,-500.0,0.00017296,2]
[350348013,1737807062178,-1063.63,0.00017296,2]
[350348014,1737807062187,-500.0,0.00017296,2]
[350348015,1737807062197,-500.0,0.00017296,2]
[350348016,1737807062208,-500.0,0.00017296,2]
[350348017,1737807062218,-500.0,0.00017296,2]
[350348018,1737807062227,-1113.67,0.00017296,2]
[350348019,1737807062237,-500.0,0.00017296,2]
[350348020,1737807062247,-500.0,0.00017296,2]
[350348021,1737807062256,-634.28,0.00017296,2]
[350348022,1737807062265,-685.5,0.00017296,2]
[350348023,1737807062275,-1371.57,0.00017296,2]
[350348024,1737807062284,-500.0,0.00017296,2]
[350348025,1737807062294,-500.0,0.00017296,2]
[350348026,1737807062303,-648.25,0.00017296,2]
[350348027,1737807062312,-500.0,0.00017296,2]
[350348028,1737807062322,-500.0,0.00017296,2]
[350348029,1737807062331,-660.57,0.00017296,2]
[350348030,1737807062340,-500.0,0.00017296,2]
[350348031,1737807062351,-575.05,0.00017296,2]
[350348032,1737807062360,-500.0,0.00017296,2]
[350348033,1737807062370,-1596.3,0.00017296,2]
[350348034,1737807062379,-1472.3,0.00017296,2]
[350348035,1737807062389,-500.0,0.00017296,2]
[350348036,1737807062398,-500.0,0.00017296,2]
[350348037,1737807062408,-1274.99,0.00017296,2]
[350348038,1737807062417,-186.14,0.00017335,2]
[350348039,1737807062428,-642.9136586,0.00017348,2]
[350348040,1737807062437,-6126.35304055,0.0001738,2]
[350348041,1737807062447,-2067.1878255,0.00017393,2]
[350348042,1737807062456,-500.0,0.00017396,2]
[350348043,1737807062465,-500.0,0.00017396,2]
[350348044,1737807062475,-500.0,0.00017396,2]
[350348045,1737807062485,-500.0,0.00017396,2]
[350348046,1737807062494,-500.0,0.00017396,2]
[350348047,1737807062503,-500.0,0.00017396,2]
[350348048,1737807062513,-500.0,0.00017396,2]
[350348049,1737807062523,-500.0,0.00017396,2]
[350348050,1737807062533,-500.0,0.00017396,2]
[350348051,1737807062542,-500.0,0.00017396,2]
[350348052,1737807062551,-500.0,0.00017396,2]
[350348053,1737807062560,-500.0,0.00017396,2]
[350348054,1737807062570,-500.0,0.00017396,2]
[350348055,1737807062581,-500.0,0.00017396,2]
[350348056,1737807062590,-500.0,0.00017396,2]
[350348057,1737807062600,-500.0,0.00017396,2]
[350348058,1737807062610,-500.0,0.00017396,2]
[350348059,1737807062620,-500.0,0.00017396,2]
[350348060,1737807062629,-500.0,0.00017396,2]
[350348061,1737807062639,-635.45,0.00017396,2]
[350348062,1737807062648,-906.75,0.00017396,2]
[350348063,1737807062657,-500.0,0.00017396,2]
[350348064,1737807062666,-500.0,0.00017396,2]
[350348065,1737807062676,-1000.0,0.00017396,2]
[350348066,1737807062685,-1817.31,0.00017396,2]
[350348067,1737807062695,-791.67,0.00017396,2]
[350348068,1737807062705,-500.0,0.00017396,2]
[350348069,1737807062714,-500.0,0.00017396,2]
[350348070,1737807062724,-500.0,0.00017396,2]
[350348071,1737807062734,-1122.79,0.00017396,2]
[350348072,1737807062743,-500.0,0.00017396,2]
[350348073,1737807062754,-500.0,0.00017396,2]
[350348074,1737807062765,-1134.77,0.00017396,2]
[350348075,1737807062777,-1987.77,0.00017396,2]
[350348076,1737807062787,-500.0,0.00017396,2]
[350348077,1737807062797,-500.0,0.00017396,2]
[350348078,1737807062806,-500.0,0.00017396,2]
[350348079,1737807062818,-500.0,0.00017396,2]
[350348080,1737807062828,-500.0,0.00017396,2]
[350348081,1737807062838,-500.0,0.00017396,2]
[350348082,1737807062850,-500.0,0.00017396,2]
[350348083,1737807062972,-500.0,0.00017396,2]
[350348084,1737807062983,-626.37,0.00017396,2]
[350348085,1737807062993,-377.41500248,0.00017396,2]
[350348086,1737807063004,-500.0,0.00017396,2]
[350348087,1737807063013,-500.0,0.00017396,2]
[350348088,1737807063024,-500.0,0.00017396,2]
[350348089,1737807063034,-500.0,0.00017396,2]
[350348090,1737807063044,-314434.45385593,0.00017397,2]
[350348091,1737807063054,-2000.0,0.00017397,2]
[350348092,1737807063064,-200.0,0.00017397,2]
[350348093,1737807063074,-500.0,0.00017397,2]
[350348094,1737807063084,-500.0,0.00017397,2]
[350348095,1737807063093,-500.0,0.00017397,2]
[350348096,1737807063103,-2000.0,0.00017397,2]
[350348097,1737807063112,-200.0,0.00017397,2]
[350348098,1737807063122,-500.0,0.00017397,2]
[350348099,1737807063132,-500.0,0.00017397,2]
[350348100,1737807063142,-500.0,0.00017397,2]
[350348101,1737807063151,-500.0,0.00017397,2]
[350348102,1737807063161,-500.0,0.00017397,2]
[350348103,1737807063171,-500.0,0.00017397,2]
[350348104,1737807063180,-500.0,0.00017397,2]
[350348105,1737807063190,-500.0,0.00017397,2]
[350348106,1737807063200,-500.0,0.00017397,2]
[350348107,1737807063209,-2650.02367,0.00017397,2]
[350348108,1737807063219,-369.487863,0.00017397,2]
[350348109,1737807063229,-536.23,0.00017397,2]
[350348110,1737807063238,-500.0,0.00017397,2]
[350348111,1737807063247,-500.0,0.00017397,2]
[350348112,1737807063257,-1156.91,0.00017397,2]
[350348113,1737807063267,-995.51,0.00017397,2]
[350348114,1737807063276,-990.91,0.00017397,2]
[350348115,1737807063285,-605.7,0.00017397,2]
[350348116,1737807063295,-500.0,0.00017397,2]
[350348117,1737807063304,-1310.85,0.00017397,2]
[350348118,1737807063314,-1790.49,0.00017397,2]
[350348119,1737807063323,-1594.57,0.00017397,2]
[350348120,1737807063334,-513.83,0.00017397,2]
[350348121,1737807063350,-586.37,0.00017397,2]
[350348122,1737807063360,-1597.93,0.00017397,2]
[350348123,1737807063370,-500.0,0.00017397,2]
[350348124,1737807063380,-663.46,0.00017397,2]
[350348125,1737807063389,-500.0,0.00017397,2]
[350348126,1737807063399,-500.0,0.00017397,2]
[350348127,1737807063409,-579.17,0.00017397,2]
[350348128,1737807063420,-522.15,0.00017397,2]
[350348129,1737807063430,-500.0,0.00017397,2]
[350348130,1737807063440,-1015.62,0.00017397,2]
[350348131,1737807063449,-807.99,0.00017397,2]
[350348132,1737807063460,-500.0,0.00017397,2]
[350348133,1737807063469,-8420.4997517,0.00017405,2]
[350348134,1737807063478,-527.3868089,0.00017417,2]
[350348135,1737807063488,-1903.80379298,0.00017431,2]
[350348136,1737807063498,-1903.80379299,0.00017431,2]
[350348137,1737807063507,-426.32,0.00017432,2]
[350348138,1737807063518,-796.76,0.00017432,2]
[350348139,1737807063529,-500.0,0.00017432,2]
[350348140,1737807063539,-1013.73,0.00017432,2]
[350348141,1737807063549,-500.0,0.00017432,2]
[350348142,1737807063558,-905.13,0.00017432,2]